Cogmind - Beta 14 @@@ ROGUE MODE // 2024.11.14 @ 19:42:32 Player: MarKhan Result: Destroyed by S-10 Pest with Light Assault Rifle Performance ------------- Evolutions (0) 0 Regions Visited (1) 200 Robots Destroyed (3) 15 Value Destroyed (33) 33 Prototype IDs (0) 0 Alien Tech Used (0) 0 Bonus (0) 0 TOTAL SCORE: 248 Bonus ------- None Cogmind --------- Core Integrity 0/250 Matter 261/300 Energy 100/100 System Corruption 0% Temperature Cool (0) Movement Core (50) Location -10/Materials Parts ------- > --- POWER (1) -------- (None) > --- PROPULSION (2) --- (None) > --- UTILITY (2) ------ (None) > --- WEAPON (2) ------- Mining Claw > --- INVENTORY (5) ---- Improved Terrain Scanner Small Laser Peak State ------------ > --- POWER ------------ (None) > --- PROPULSION ------- (None) > --- UTILITY ---------- Seismic Detector > --- WEAPON ----------- Light Assault Rifle Light Assault Rifle > --- INVENTORY -------- Small Laser [Rating: 3] Favorites ----------- Power None Propulsion None Utility Seismic Detector Device Seismic Detector Weapon Light Assault Rifle Ballistic Gun Light Assault Rifle Special Weapon Mining Laser Slashing Weapon Mining Claw Build | -11 -10 ------- Run | Yrd Mat Slots Evolved . | . . Power . | . . Propulsion . | . . Utility . | . . Weapon . | . . Parts Attached 7 | 3 4 Power . | . . Engine . | . . Core . | . . Reactor . | . . Propulsion . | . . Treads . | . . Leg . | . . Wheel . | . . Hover . | . . Flight . | . . Utility 1 | 1 . Device 1 | 1 . Storage . | . . Processor . | . . Hackware . | . . Protection . | . . Artifact . | . . Weapon 6 | 2 4 Energy Gun . | . . Energy Cannon . | . . Ballistic Gun 3 | 2 1 Ballistic Cannon . | . . Launcher . | . . Special Weapon 1 | . 1 Impact Weapon . | . . Slashing Weapon 2 | . 2 Piercing Weapon . | . . Special Melee Weapon . | . . Unidentified Prototypes . | . . Parts Lost 3 | . 3 Power . | . . Propulsion . | . . Utility 1 | . 1 Weapon 2 | . 2 Highest Loss Streak 3 | . 3 To Critical Strikes . | . . Average Slot Usage (%) 37 | . 37 Device 10 | . 10 Ballistic Gun 20 | . 20 Special Weapon 1 | . 1 Slashing Weapon 4 | . 4 Peak Build Rating 3 | 3 3 Average Rating 2 | 1 2 On Entrance 1 | . 3 Naked Turns . | . . Heaviest Build 4 | 3 4 Greatest Support 3 | 3 3 Greatest Overweight (x) 1 | . 1 Average Overweight (x) . | . . Largest Inventory Capacity 5 | 5 5 Average Capacity 5 | 5 5 Most Carried 4 | 3 4 Average Carried 2 | . 2 Final Capacity 5 | 5 5 Final Carried 3 | 3 2 Class Distribution -------------------- 100% | Mutant Dominant Class ---------------- Mutant | -10/Materials Resources | -11 -10 ----------- Run | Yrd Mat Matter Collected 236 | 232 4 Remotely . | . . Salvage Created 50 | 24 26 Parts 5 | 3 2 Haulers Intercepted . | . . Recyclers Shooed . | . . Parts Field Recycled . | . . Retrieved Matter . | . . Parts Self-Destructed . | . . Prevented . | . . Kills | -11 -10 ------- Run | Yrd Mat Combat Hostiles Destroyed 1 | . 1 Melee 1 | . 1 Classes Destroyed 3 | 1 2 Tunneler 1 | 1 . Operator 1 | . 1 Swarmer 1 | . 1 Best Kill Streak 1 | 1 1 Combat Bots Only 1 | . 1 Max Kills in Single Turn 1 | 1 1 Gunslinging . | . . Exploded . | . . Melee 1 | . 1 Uniques/NPCs Destroyed . | . . Combat | -11 -10 -------- Run | Yrd Mat Hostile Shots Fired 72 | . 72 Missed 17 | . 17 Damage Taken 445 | . 445 Core 255 | . 255 Absorbed by Shields . | . . Core Remaining (%) 100 | 100 . Volleys Fired 11 | 1 10 Largest 2 | 2 2 Hottest 100 | 40 100 Shots Fired 21 | 2 19 Gun 20 | 2 18 Cannon . | . . Launcher . | . . Special 1 | . 1 Kinetic 20 | 2 18 Thermal 1 | . 1 Explosive . | . . Electromagnetic . | . . Robot Hit Streak 6 | 2 6 Robot Miss Streak 2 | . 2 Penetration Max . | . . Secondary Targets . | . . Shots Hit Robots 19 | 2 17 Core Hits 8 | 1 7 Critical Kills . | . . Critical Parts Destroyed . | . . Critical Strikes . | . . Melee Attacks 11 | . 11 Impact . | . . Slashing 11 | . 11 Piercing . | . . Sneak Attacks . | . . Combat Hostiles . | . . Follow-up Attacks . | . . Damage Inflicted 263 | 20 243 Guns 138 | 20 118 Cannons . | . . Explosions . | . . Melee 125 | . 125 Ramming . | . . Kinetic 138 | 20 118 Thermal . | . . Explosive . | . . Electromagnetic . | . . Impact . | . . Slashing 125 | . 125 Piercing . | . . Highest Corruption . | . . Average Corruption . | . . Corruption Purged . | . . Corruption Blocked . | . . Overload Shots . | . . Overflow Damage 20 | . 20 Projectiles . | . . Explosions . | . . Melee 20 | . 20 Knockbacks . | . . Impact . | . . Kinetic . | . . Secondary . | . . Self-Inflicted Damage . | . . Shots . | . . Rammed . | . . Targets Rammed . | . . Kicked . | . . Crushed . | . . Highest Temperature . | . . Average Temperature . | . . Received Heat Transfer . | . . Siege Activations . | . . Robots Corrupted . | . . Combat Hostiles . | . . Parts Fried . | . . Impact Corruptions . | . . Robots Melted . | . . Combat Hostiles . | . . Parts Melted . | . . Heat Transferred . | . . Parts Sabotaged . | . . Parts Stolen . | . . Parts Stripped . | . . Power Chain Reactions . | . . Alert | -11 -10 ------- Run | Yrd Mat Peak Influence 181 | 5 181 Initial 3 | . 3 Average 79 | 1 92 Maximum Alert Level . | . . Low Security (%) 100 | 100 100 Level 1 . | . . Level 2 . | . . Level 3 . | . . Level 4 . | . . Level 5 . | . . High Security . | . . Max Security . | . . Squads Dispatched . | . . Investigation . | . . Extermination . | . . Reinforcement . | . . Assault . | . . Garrison . | . . Intercept . | . . Searches Triggered . | . . Construction Impeded . | . . Haulers Reinforced . | . . Active Scanning Responses . | . . Cargo Convoy Interrupts . | . . Stealth | -11 -10 --------- Run | Yrd Mat Distress Signals 2 | . 2 Communications Jammed . | . . Distress Signals . | . . Times Spotted 12 | . 12 Peak Tracking Total 8 | . 8 Tactical Retreats 2 | . 2 Traps | -11 -10 ------- Run | Yrd Mat Traps Triggered . | . . Indirectly . | . . Trap Hack Attempts . | . . Triggered . | . . Disarmed . | . . Reprogrammed . | . . Reused . | . . Traps Extracted . | . . Installed . | . . Triggered . | . . Machines | -11 -10 ---------- Run | Yrd Mat Machines Disabled . | . . Max in Single Turn . | . . Machines Repaired . | . . Machines Dismantled . | . . Machines Sabotaged . | . . Overloaded Fab Kills . | . . Hacking | -11 -10 --------- Run | Yrd Mat Machines Accessed 6 | . 6 Terminals 6 | . 6 Fabricators . | . . Repair Stations . | . . Recycling Units . | . . Scanalyzers . | . . Garrison Access . | . . Total Hacks 18 | . 18 Successful 12 | . 12 Failed 6 | . 6 Catastrophic . | . . Database Lockouts . | . . Manual 17 | . 17 Terminals 18 | . 18 Fabricators . | . . Repair Stations . | . . Recycling Units . | . . Scanalyzers . | . . Garrison Access . | . . Terminal Hacks 3 | . 3 Robot Analysis 1 | . 1 Terminal Index 1 | . 1 Locate Traps 1 | . 1 Fabricator Hacks . | . . Repair Station Hacks . | . . Recycling Unit Hacks . | . . Scanalyzer . | . . Garrison Access Hacks . | . . Unauthorized Hacks 9 | . 9 Terminals 9 | . 9 Assimilate 1 | . 1 Botnet 2 | . 2 Operators 1 | . 1 Skim 5 | . 5 Fabricators . | . . Repair Stations . | . . Recycling Units . | . . Scanalyzers . | . . Garrison Access . | . . Data Cores Recovered 1 | . 1 Used 1 | . 1 Hacking Detections 6 | . 6 Full Trace Events . | . . Feedback Events . | . . Feedback Blocked . | . . Robot Schematics Acquired . | . . Robots Built . | . . Authchips . | . . Time . | . . Total Robot Build Rating . | . . Part Schematics Acquired . | . . Parts Built . | . . Authchips . | . . Time . | . . Total Part Build Rating . | . . Parts Repaired . | . . Time . | . . Parts Recycled . | . . Recycled Matter . | . . Retrieved Matter . | . . Retrieved Components . | . . Parts Scanalyzed . | . . Part Schematics Acquired . | . . Parts Damaged . | . . Bothacking | -11 -10 ------------ Run | Yrd Mat Used RIF Installer . | . . Robots Hacked . | . . Non-combat . | . . Combat . | . . Robot Hacks Applied . | . . Relay Couplers Released . | . . Fabnet Peak Effective % . | . . Robots Rewired . | . . Allies Hacked . | . . Hacks Repelled . | . . Allies | -11 -10 -------- Run | Yrd Mat Total Allies . | . . Largest Group . | . . Highest-Rated Group . | . . Highest-Rated Ally . | . . Total Orders . | . . Ally Attacks . | . . Total Damage . | . . Kills . | . . Allies Corrupted . | . . Allies Melted . | . . Intel | -11 -10 ------- Run | Yrd Mat Robot Analysis Total 1 | . 1 Derelict Logs Recovered . | . . Drone Launches . | . . Drone Recoveries . | . . Exploration | -11 -10 ------------- Run | Yrd Mat Turns Passed 213 | 31 182 Spaces Moved 245 | 42 203 Core 245 | 42 203 Treads . | . . Legs . | . . Wheels . | . . Hover . | . . Flight . | . . Fastest Speed 50 | 50 50 Average Speed 55 | 50 56 Slowest Speed 100 | 50 100 Overloaded Moves . | . . Propulsion Burnouts . | . . Robots Hopped . | . . Cave-ins Triggered . | . . Exploration Rate (%) 25 | 3 48 Regions Visited 1 Branch Regions . Pre-discovered Areas . | . . Known Exits Taken . | . . Unknown Exits Taken 1 | 1 . Scrap Searched . | . . Spaces Dug 1 | . 1 Terrain Destroyed 1 | . 1 Melee . | . . Projectile 1 | . 1 AOE . | . . Terrain Rammed . | . . Walls Destroyed . | . . Machines Disabled . | . . Actions | -11 -10 --------- Run | Yrd Mat Total 280 | 48 232 Wait 2 | . 2 Move 244 | 41 203 Hop . | . . Pick Up 3 | 3 . Fast Attach 4 | 3 1 Attach 1 | . 1 Detach 1 | . 1 Swap 2 | . 2 Drop 1 | . 1 Fire 11 | 1 10 Melee 11 | . 11 Ram . | . . Kick . | . . Crush . | . . Escape Stasis . | . . Rewire . | . . Trap . | . . Miscellaneous . | . . Route ------- -11/Scrapyard -10/Materials (discovered 2 exits: *Min x2) History --------- Turn | Location | Event 14 | -11/Scrapyard | Discovered new exit (range 15) 32 | -11/Scrapyard | Entered Materials 139 | -10/Materials | Discovered new exit (range 8) 177 | -10/Materials | Core integrity fell below 50% 194 | -10/Materials | Identified exit to Mines 207 | -10/Materials | Core integrity fell below 20% 214 | -10/Materials | Destroyed by S-10 Pest with Light Assault Rifle Last Messages --------------- flight speeds. Swarmer squads are particularly susceptible to explosives. 00147_ T-07 Excavator is excavating. 00147_ K-01 Serf cleans the Neutrino Reactor. 00151_ T-07 Excavator is excavating. 00151_ W-16 Scout sends out distress signal. 00155_ T-07 Excavator is excavating. 00168_ K-01 Serf cleans the Neutrino Reactor. 00174_ Lgt. Assault Rifle destroyed. 00176_ Seismic Detector destroyed. 00183_ Destroyed Flight Unit. 00186_ S-10 Pest destroyed. 00192_ Destroyed Lgt. Ion Engine. 00194_ >> SKIM: Loading 1 Mines entrance... 00194_ >> SKIM: Stored Mines entrances (x1). 00200_ Lgt. Assault Rifle destroyed. 00204_ Destroyed Flight Unit. 00211_ K-01 Serf cleans the Neutrino Reactor. Map ----- +----------------------------------------------------+ | ?????????????????????????????# ## | | ?????????????????????????????# #######"## | | ?????????????????????????????# #????# | | ?????????????????????????????# #????# "" | | ?????????????????############# ###??# T" | | ?????????????????# # #??# "" | | ?????????????????# # #### | | ?????????????????# |! + + | | ?????????????????# !! # #### | | ?????????????????# !! # #??# = | | ?????????????????#! ## ##??# | | ?????????????????# ## #???##### | | ?????????????????# ## #???????? | | ?????????????????####+####### #?####### | | ??????????????????# ## | | ??????????????##### | | ??????????????+ ^ < | | ??????????????# ^^ ^ ^ | | ??????????????+ """ """^ ###" " | | ??????????????# """ k""" ""#" |"| " | | ??????????????# """ """ T"#?"""""" | | ??????????????# ""#??##### | | ??????????????# ###??????? | | ??????????????# % #????????? | | ??????????#######s####### #????????? | | ??????????# @*[ # #????????? | | ??????????# # #????????? | | ??????????# """ """ """ # #????????? | | ??????????# """s""" """ # #????????? | | ??????????# """ """ """ # #????????? | | ??????????# # #????????? | | ???????????+############# #????????? | | ???????????????????????? #????????? | | ??????????????????????? ????????? | | ?????????????????????? ???????? | | ????????????????????? #??????? | | ????????????????????# ### ####??????? | | ????????????????????######?? ?????????? | | ????????????????????????????###?????????? | | ????????????????????????????????????????? | | ????????????????????????????????????????? | | ????????????????????????????????????????? | | ????????????????????????????????????????? | | ????????????????????????????????????????? | | ????????????????????????????????????????? | | ????????????????????????????????????????? | | ????????????????????????????????????????? | | ????????????????????????????????????????? | | ????????????????????????????????????????? | | ????????????????????????????????????????? | +----------------------------------------------------+ Best States ------------- Heat Dissipation 25 Energy Generation 5 Energy Capacity 100 Matter Stores 300 Matter Capacity 300 Sight Range 16 Terrain Scan Density 10 Evasion (%) 50 Item Schematics ----------------- None Robot Schematics ------------------ None Fabricated ------------ Nothing Alien Tech Used ----------------- None Achievements -------------- None Challenges ------------ None Game ------ Seed CombatThrusterInitializer Manual? 0 Play Time 00:04:44 Cumulative 100.0 hours Start 2024.11.14 @ 19:37:56 End 2024.11.14 @ 19:42:32 Sessions 1 Manual Loads 0 Difficulty Rogue Special Mode None Game No. 100 Rogue 100 Adventurer 0 Explorer 0 Win Type - Total 2 Types 2/0/0/0/0/0/0/0/0 Lore% 51 Gallery% 51 Achievement% 43 Wizard Run 0 Options --------- Layout 1 ASCII 0 Keyboard 1 Movement Arrows Keybinds 0 Fullscreen 2 Font 24/Smallcaps Map View 50x35 Zoom Use 0% Tactical HUD 1 Map Filters NONE Filters NONE Steam 1 RUN: 082c6784-343f-47b3-83bd-8c399aae2afd